bitfinex/quotes_ETHUSD_20251217
["timestamp","ask_amount","ask_price","bid_price","bid_amount"]
[1765944125382,0.4766,2952.5,2952.4,0.537]
[1765944126562,0.0047,2952.5,2952.4,0.537]
[1765944127190,0.4564,2952.5,2952.4,0.537]
[1765944127697,0.0047,2952.5,2952.4,0.537]
[1765944128889,0.4564,2952.5,2952.4,0.537]
[1765944129079,4.22768479,2952.5,2952.4,0.537]
[1765944129283,8.95403122,2952.5,2952.4,0.537]
[1765944129467,0.84172459,2952.5,2952.4,0.537]
[1765944131893,0.84172459,2952.5,2952.4,0.002]
[1765944132094,0.84172459,2952.5,2952.4,0.537]
[1765944134894,0.39002459,2952.5,2952.4,0.537]
[1765944135086,0.001,2952.5,2952.4,0.9879]
[1765944135284,0.001,2952.5,2952.4,4.86367492]
[1765944135468,0.4845,2952.5,2952.4,0.537]
[1765944136274,0.001,2952.5,2952.4,0.537]
[1765944136969,0.001,2952.5,2952.4,3.92407492]
[1765944137170,0.001,2952.5,2952.4,4.86367492]
[1765944137380,0.001,2952.5,2952.4,5.68895779]
[1765944142101,0.0983,2952.5,2952.4,0.002]
[1765944142285,0.5465,2952.5,2952.4,0.002]
[1765944142479,0.0983,2952.5,2952.4,0.537]
[1765944142686,0.001,2952.5,2952.4,4.86367492]
[1765944143670,0.001,2952.5,2952.4,0.9879]
[1765944143892,0.0983,2952.5,2952.4,0.537]
[1765944144105,0.001,2952.5,2952.4,0.537]
[1765944144311,0.001,2952.5,2952.4,1.4766]
[1765944146603,0.001,2952.5,2952.4,0.9879]
[1765944149809,0.0983,2952.5,2952.4,0.537]
[1765944150014,0.5465,2952.5,2952.4,0.537]
[1765944151486,0.9398268,2952.5,2952.4,0.537]
[1765944151888,0.001,2952.5,2952.4,5.26917892]
[1765944156522,0.001,2952.5,2952.4,4.73417892]
[1765944156725,0.001,2952.5,2952.4,5.26917892]
[1765944157824,0.001,2952.5,2952.4,3.83997492]
[1765944158027,0.5462,2952.5,2952.4,0.537]
[1765944158419,0.0682,2952.5,2952.4,0.537]
[1765944160914,0.46149796,2952.5,2952.4,0.537]
[1765944161119,0.5462,2952.5,2952.4,0.537]
[1765944161510,0.5462,2952.5,2952.4,0.002]
[1765944161705,0.5462,2952.5,2952.4,0.537]
[1765944164035,0.5462,2952.5,2952.4,0.002]
[1765944164246,0.93950619,2952.5,2952.4,0.537]
[1765944164605,0.46150619,2952.5,2952.4,0.537]
[1765944164842,0.001,2952.5,2952.4,1.0272]
[1765944165024,0.001,2952.5,2952.4,4.91407492]
[1765944165337,0.001,2952.5,2952.4,10.04806255]
[1765944166516,0.001,2952.5,2952.4,5.31957892]
[1765944166715,0.001,2952.5,2952.4,6.19147057]
[1765944167352,0.001,2952.5,2952.4,0.4922]
[1765944167643,0.0682,2952.5,2952.4,0.537]
[1765944168943,0.0682,2952.5,2952.4,0.002]
[1765944169149,0.0682,2952.5,2952.4,0.537]
[1765944169347,0.0682,2952.5,2952.4,0.002]
[1765944169646,0.5462,2952.5,2952.4,0.537]
[1765944169854,0.93950849,2952.5,2952.4,0.537]
[1765944170746,0.46150849,2952.5,2952.4,0.537]
[1765944172514,0.0723,2952.5,2952.4,0.537]
[1765944173243,0.001,2952.5,2952.4,1.0272]
[1765944174029,0.001,2952.5,2952.4,4.41427492]
[1765944174449,0.001,2952.5,2952.4,1.0272]
[1765944177365,0.0682,2952.5,2952.4,1.0272]
[1765944177562,0.0682,2952.5,2952.4,0.537]
[1765944178826,0.001,2952.5,2952.4,1.0272]
[1765944180830,0.0723,2952.5,2952.4,0.537]
[1765944181852,0.5462,2952.5,2952.4,0.537]
[1765944182656,0.0723,2952.5,2952.4,0.537]
[1765944186842,0.001,2952.5,2952.4,1.0005]
[1765944187662,0.0763,2952.5,2952.4,0.537]
[1765944188235,0.001,2952.5,2952.4,0.537]
[1765944188877,0.001,2952.5,2952.4,1.0005]
[1765944189048,0.001,2952.5,2952.4,4.38757492]
[1765944189245,0.001,2952.5,2952.4,1.0005]
[1765944189549,0.0593,2952.5,2952.4,0.537]
[1765944190768,0.5461,2952.5,2952.4,0.537]
[1765944194566,0.001,2952.5,2952.4,0.537]
[1765944194760,0.001,2952.5,2952.4,1.0005]
[1765944194956,0.001,2952.5,2952.4,4.38757492]
[1765944195157,0.001,2952.5,2952.4,5.68148089]
[1765944196560,0.001,2952.5,2952.4,4.67718089]
[1765944196757,0.001,2952.5,2952.4,0.4655]
[1765944196972,0.001,2952.5,2952.4,4.38757492]
[1765944197454,0.001,2952.5,2952.4,4.85687492]
[1765944198951,0.001,2952.5,2952.4,5.26237892]
[1765944199344,0.001,2952.5,2952.4,5.27257]
[1765944199549,0.001,2952.5,2952.4,6.6126134]
[1765944200477,0.001,2952.5,2952.4,6.60242232]
[1765944201055,0.0593,2952.5,2952.4,0.002]
[1765944201378,0.0593,2952.5,2952.4,0.537]
[1765944201379,0.5461,2952.5,2952.4,0.537]
[1765944201674,0.5461,2952.5,2952.4,0.002]
[1765944201873,1.0735587,2952.5,2952.4,0.537]
[1765944202668,0.5461,2952.5,2952.4,0.537]
[1765944203652,0.0593,2952.5,2952.4,0.537]
[1765944203852,0.001,2952.5,2952.4,0.537]
[1765944204481,0.0636,2952.5,2952.4,0.537]
[1765944204786,0.001,2952.5,2952.4,1.0005]
[1765944205770,0.001,2952.5,2952.4,1.4698]
[1765944211161,0.001,2952.5,2952.4,1.0005]
[1765944211883,0.001,2952.5,2952.4,4.85687492]
[1765944212256,0.001,2952.5,2952.4,10.81547804]
[1765944216414,0.001,2952.5,2952.4,15.54396505]
[1765944216562,0.001,2952.5,2952.4,11.27985827]
[1765944217584,0.001,2952.5,2952.4,6.01637126]
[1765944217881,0.001,2952.5,2952.4,11.27985827]
[1765944218982,0.001,2952.5,2952.4,10.74485827]
[1765944219166,0.001,2952.5,2952.4,11.27985827]
[1765944219366,0.001,2952.5,2952.4,5.55199103]
[1765944219676,0.001,2952.5,2952.4,10.81547804]
[1765944220885,0.001,2952.5,2952.4,16.00834528]
[1765944222486,0.001,2952.5,2952.4,11.27985827]
[1765944222688,0.001,2952.5,2952.4,11.8777933]
[1765944224061,0.001,2952.5,2952.4,16.60628031]
[1765944226875,0.59793503,2952.8,2952.7,1.337004]
[1765944227076,0.59793503,2952.8,2952.7,6.24562943]
[1765944227271,0.59793503,2952.8,2952.7,1.51714242]
[1765944227895,0.59793503,2952.8,2952.7,4.9038732]
[1765944230189,0.59793503,2952.8,2952.7,5.36825343]
[1765944230394,0.59793503,2952.8,2952.7,5.40212073]
[1765944231786,0.59793503,2952.8,2952.7,5.36825343]
[1765944233308,0.59793503,2952.8,2952.7,10.63174044]
[1765944234310,0.59793503,2952.8,2952.7,11.22967547]
[1765944236700,0.59793503,2952.8,2952.7,10.16484044]
[1765944236902,0.59793503,2952.8,2952.7,10.63174044]
[1765944237608,0.59793503,2952.8,2952.7,10.62748332]
[1765944239532,0.59793503,2952.8,2952.7,5.36825343]
[1765944239688,0.59793503,2952.8,2952.7,5.90325343]
[1765944242194,0.59793503,2952.8,2952.7,4.72373478]
[1765944242406,0.59793503,2952.8,2952.7,9.98296467]
[1765944242599,0.59793503,2952.8,2952.7,9.44796467]
[1765944242786,0.59793503,2952.8,2952.7,9.98296467]
[1765944243389,0.59793503,2952.8,2952.7,4.85323078]
[1765944243790,0.59793503,2952.8,2952.7,9.98296467]
[1765944244390,0.59793503,2952.8,2952.7,5.25873478]
[1765944248520,1.05793503,2952.8,2952.7,3.92173078]
[1765944249105,0.59793503,2952.8,2952.7,4.39173078]
[1765944249502,0.59793503,2952.8,2952.7,4.84793078]
[1765944249710,0.59793503,2952.8,2952.7,4.39173078]
[1765944251324,0.59793503,2952.8,2952.7,4.84793078]
[1765944252331,0.59793503,2952.8,2952.7,5.25343478]
[1765944254126,0.59793503,2952.8,2952.7,4.71843478]
[1765944254332,0.59793503,2952.8,2952.7,5.25343478]
[1765944255118,0.59793503,2952.8,2952.7,10.84448596]
[1765944257205,0.59793503,2952.8,2952.7,10.30948596]
[1765944257407,0.59793503,2952.8,2952.7,10.84448596]
[1765944258233,0.59793503,2952.8,2952.7,5.5836818]
[1765944258417,0.59793503,2952.8,2952.7,4.79723478]
[1765944259736,0.59793503,2952.8,2952.7,5.25343478]
[1765944263131,0.59793503,2952.8,2952.5,0.002]
[1765944263335,0.59793503,2952.8,2952.6,0.535]
[1765944263520,0.0561,2952.7,2952.5,3.38890761]
[1765944263850,0.0561,2952.7,2952.6,0.535]
[1765944264022,0.46,2952.6,2952.5,0.002]
[1765944264227,0.46,2952.6,2952.5,0.537]
[1765944264842,0.46,2952.6,2952.5,0.002]
[1765944265138,0.99466175,2952.6,2952.5,0.537]
[1765944269531,0.46,2952.6,2952.5,0.537]
[1765944274676,0.5502,2952.6,2952.5,0.537]
[1765944283734,0.5512,2952.6,2952.5,0.537]
[1765944284340,0.5512,2952.6,2952.5,0.002]
[1765944284549,0.5512,2952.6,2952.5,0.537]
[1765944284844,1.00479179,2952.6,2952.5,0.537]
[1765944288665,1.00479179,2952.6,2952.5,0.002]
[1765944288869,1.00479179,2952.6,2952.5,0.537]
[1765944289171,1.00479179,2952.6,2952.5,0.002]
[1765944289370,1.00479179,2952.6,2952.5,0.537]
[1765944297145,4.39163728,2952.6,2952.5,0.537]
[1765944297348,3.93804549,2952.6,2952.5,0.537]
[1765944298785,0.5512,2952.6,2952.5,0.537]
[1765944299779,0.5512,2952.6,2952.5,0.002]
[1765944299950,0.5512,2952.6,2952.5,0.537]
[1765944300978,3.93804549,2952.6,2952.5,0.002]
[1765944301185,4.73030536,2952.6,2952.5,0.537]
[1765944301588,1.34345987,2952.6,2952.5,0.537]
[1765944302984,1.25325987,2952.6,2952.5,0.537]
[1765944303184,0.461,2952.6,2952.5,0.537]
[1765944303654,0.5512,2952.6,2952.5,0.537]
[1765944304391,0.461,2952.6,2952.5,0.537]
[1765944304887,0.5512,2952.6,2952.5,0.537]
[1765944305887,0.461,2952.6,2952.5,0.537]
[1765944306280,0.5512,2952.6,2952.5,0.537]
[1765944310388,4.39163324,2952.6,2952.5,0.537]
[1765944310589,9.13027745,2952.6,2952.5,0.002]
[1765944310769,0.5465,2952.1,2952.0,0.537]
[1765944312484,4.39829935,2952.1,2952.0,0.537]
[1765944312789,5.23055134,2952.1,2952.0,0.537]
[1765944316792,1.84313222,2952.1,2952.0,0.537]
[1765944317298,1.37875199,2952.1,2952.0,0.537]
[1765944317589,0.5465,2952.1,2952.0,0.537]
[1765944319115,0.46438023,2952.2,2952.0,0.537]
[1765944319399,0.453,2952.5,2952.1,0.4757]
[1765944319731,3.38679752,2952.7,2952.1,0.4757]
[1765944319888,1.6161008,2952.8,2952.3,0.4757]
[1765944319889,4.43759559,2952.8,2952.3,0.4757]
[1765944320089,4.43759559,2952.8,2952.4,0.535]
[1765944320595,0.5465,2952.5,2952.0,3.39967932]
[1765944320799,0.5465,2952.5,2952.1,0.535]
[1765944321702,0.5465,2952.5,2952.1,3.92235205]
[1765944323304,0.5465,2952.5,2952.0,3.38948824]
[1765944323478,0.4575,2952.3,2952.2,0.535]
[1765944324403,0.0045,2952.3,2952.2,0.535]
[1765944324906,0.454,2952.6,2952.2,0.535]
[1765944325310,0.454,2952.6,2952.2,3.92226233]
[1765944325505,0.454,2952.6,2952.2,4.39796233]
[1765944325987,0.001,2952.6,2952.2,4.39796233]
[1765944326303,0.001,2952.6,2952.2,8.56128838]
[1765944326498,0.001,2952.6,2952.3,0.4757]
[1765944327307,0.0971,2952.3,2952.2,0.535]
[1765944327612,0.5465,2952.3,2952.2,0.535]
[1765944329190,0.0045,2952.2,2952.1,3.38737538]
[1765944329391,0.0045,2952.2,2952.1,3.92237538]
[1765944330483,0.0045,2952.2,2952.1,0.535]
[1765944330683,0.0045,2952.2,2952.1,3.92241912]
[1765944330903,0.453,2952.5,2952.1,3.92241912]
[1765944331212,0.453,2952.5,2952.1,4.39811912]
[1765944331399,0.454,2952.6,2952.1,4.39811912]
[1765944331591,0.454,2952.6,2952.2,0.4757]
[1765944332108,0.001,2952.6,2952.2,0.4757]
[1765944332307,0.001,2952.6,2952.5,0.4899]
[1765944332507,0.001,2952.6,2952.5,1.0249]
[1765944332709,0.001,2952.6,2952.5,1.5006]
[1765944333090,0.001,2952.6,2952.5,10.24043943]
[1765944333787,0.001,2952.6,2952.5,5.51060377]
[1765944333980,0.001,2952.6,2952.5,10.24043943]
[1765944336013,0.001,2952.6,2952.5,10.64594343]
[1765944337926,0.001,2952.6,2952.5,5.91610777]
[1765944345524,0.001,2952.6,2952.5,4.8173642]
[1765944346024,0.001,2952.6,2952.5,5.2799642]
[1765944361833,0.0008,2952.5,2952.4,3.38707162]
[1765944362027,0.0008,2952.5,2952.4,3.92207162]
[1765944362649,0.001,2952.6,2952.4,7.77654654]
[1765944362854,0.001,2952.6,2952.4,8.23914654]
[1765944363041,0.001,2952.6,2952.5,0.4674]
[1765944363548,0.001,2952.6,2952.5,2.16980973]
[1765944364144,0.001,2952.6,2952.5,5.55676993]
[1765944367547,0.001,2952.6,2952.5,6.15470496]
[1765944369041,0.001,2952.6,2952.5,6.68970496]
[1765944371644,0.001,2952.6,2952.5,11.41954062]
[1765944373877,0.001,2952.6,2952.5,11.88392085]
[1765944374377,0.001,2952.6,2952.5,7.15408519]
[1765944374748,0.001,2952.6,2952.5,6.61908519]
[1765944374948,0.001,2952.6,2952.5,6.68970496]
[1765944375279,0.001,2952.6,2952.5,6.09176993]
[1765944383898,0.001,2952.6,2952.5,5.55676993]
[1765944384100,0.001,2952.6,2952.5,6.09176993]
[1765944390104,0.001,2952.6,2952.5,6.59001976]
[1765944390307,0.001,2952.6,2952.5,6.55615016]
[1765944390986,0.001,2952.6,2952.5,7.15408519]
[1765944391384,0.001,2952.6,2952.5,11.87991596]
[1765944391710,0.001,2952.6,2952.5,7.15408519]
[1765944394104,0.001,2952.6,2952.5,11.87991596]
[1765944394399,0.001,2952.6,2952.5,11.34491596]
[1765944394573,0.001,2952.6,2952.5,11.87991596]
[1765944394775,0.001,2952.6,2952.5,7.15408519]
[1765944399002,0.001,2952.6,2952.5,6.61908519]
[1765944399213,0.001,2952.6,2952.5,7.15408519]
[1765944400110,0.001,2952.6,2952.5,6.61908519]
[1765944400314,0.001,2952.6,2952.5,7.15408519]
[1765944400606,0.001,2952.6,2952.5,6.32997054]
[1765944401605,0.001,2952.6,2952.5,3.3869602]
[1765944401606,0.4602,2952.6,2952.5,3.3869602]
[1765944401801,0.5501,2952.6,2952.5,3.9219602]
[1765944401996,0.4602,2952.6,2952.5,3.9219602]
[1765944404318,0.4565,2952.6,2952.5,3.9219602]
[1765944404816,0.001,2952.6,2952.5,3.9219602]
[1765944405000,0.001,2952.6,2952.5,4.3949602]
[1765944405910,0.0837,2952.6,2952.5,3.9219602]
[1765944406517,0.0781,2952.4,2952.3,0.002]
[1765944406815,0.0781,2952.4,2952.3,3.92418964]
[1765944407118,0.001,2952.6,2952.3,7.31137928]
[1765944407503,0.001,2952.6,2952.3,3.92418964]
[1765944407887,0.001,2952.6,2952.3,7.31137928]
[1765944408081,0.001,2952.6,2952.3,7.77557928]
[1765944408484,0.001,2952.6,2952.5,0.9372]
[1765944409091,0.001,2952.6,2952.5,4.3241602]
[1765944409417,0.001,2952.6,2952.5,4.7296642]
[1765944412324,0.001,2952.6,2952.5,5.60624799]
[1765944415830,0.001,2952.6,2952.5,6.14124799]
[1765944417404,0.001,2952.6,2952.5,5.27485528]
[1765944418528,0.001,2952.6,2952.5,5.73923551]
[1765944419132,0.001,2952.6,2952.5,10.46506628]
[1765944419332,0.001,2952.6,2952.5,11.06300131]
[1765944422127,0.001,2952.6,2952.5,6.33717054]
[1765944422310,0.001,2952.6,2952.5,7.78339696]
[1765944423406,0.001,2952.6,2952.5,7.24839696]
[1765944423618,0.001,2952.6,2952.5,7.78339696]
[1765944428240,0.001,2952.6,2952.5,12.50922773]
[1765944434045,0.001,2952.6,2952.5,17.2350585]
[1765944434417,0.59793503,2952.8,2952.7,1.341104]
[1765944434639,0.59793503,2952.8,2952.7,3.8675261]
[1765944435447,0.59793503,2952.8,2952.7,4.46546113]
[1765944436433,0.59793503,2952.8,2952.7,7.85219191]
[1765944436616,1e-08,2952.8,2952.7,20.35272821]
[1765944436816,1e-08,2952.8,2952.7,20.82932821]
[1765944437533,1e-08,2952.8,2952.7,25.55201467]
[1765944437960,0.001,2954.0,2953.4,1.341104]
[1765944438149,0.001,2954.0,2953.4,6.59879046]
[1765944438653,0.001,2954.0,2953.4,9.98471854]
[1765944438855,0.001,2954.0,2953.4,9.99490962]
[1765944439152,0.001,2954.0,2953.4,10.13056422]
[1765944439354,0.001,2954.0,2953.4,11.92491234]
[1765944439720,0.001,2954.0,2953.4,7.20222588]
[1765944439922,0.001,2954.0,2953.4,10.08056422]
[1765944440256,0.001,2954.0,2953.4,10.54494445]
[1765944443959,0.001,2954.0,2953.4,15.26763091]
[1765944444259,0.001,2954.0,2953.4,10.54320055]
[1765944447933,0.001,2954.0,2953.4,15.26414311]
[1765944448138,0.001,2954.0,2953.4,17.15158048]
[1765944448342,0.001,2954.0,2953.4,12.43063792]
[1765944448539,0.001,2954.0,2953.4,17.15158048]
[1765944448741,0.001,2954.0,2953.4,30.1185257]
[1765944448933,0.001,2954.0,2953.5,1.34648423]
[1765944449135,0.001,2954.0,2953.5,8.25166549]
[1765944449329,0.001,2954.0,2953.6,0.4766]
[1765944449534,0.001,2954.0,2953.6,11.25756043]
[1765944450057,0.001,2954.0,2953.6,11.3931902]
[1765944450244,0.001,2954.0,2953.6,13.5704278]
[1765944451787,0.001,2954.0,2953.6,16.9561266]
[1765944452272,0.001,2954.0,2953.6,12.23518404]
[1765944455570,0.001,2954.0,2953.6,12.77018404]
[1765944460052,0.001,2954.0,2953.6,17.4911266]
[1765944463053,0.001,2954.0,2953.7,1.85068423]
[1765944463282,0.001,2954.0,2953.7,4.28166811]
[1765944463684,0.001,2954.0,2953.7,4.41729604]
[1765944464094,0.001,2954.0,2953.7,7.80288022]
[1765944472162,0.001,2954.0,2953.7,20.76982544]
[1765944473792,0.001,2954.7,2954.6,0.4811]
[1765944473998,0.001,2954.7,2954.6,1.920304]
[1765944474198,0.001,2954.7,2954.6,1.93049508]
[1765944475080,0.001,2954.7,2954.6,1.39649508]
[1765944475282,0.001,2954.7,2954.6,1.93049508]
[1765944475803,0.001,2954.7,2954.6,5.31504798]
[1765944477699,0.001,2954.7,2954.6,6.65813245]
[1765944487203,0.001,2955.0,2954.9,0.5]
[1765944487503,0.001,2955.0,2954.9,1.27829514]
[1765944487701,0.001,2955.0,2954.9,6.4047417]
[1765944487907,0.001,2955.0,2954.9,7.04521587]
[1765944488270,0.001,2955.0,2954.9,6.72801181]
[1765944489286,0.001,2955.0,2954.9,10.11222108]
[1765944490619,0.001,2955.0,2954.9,10.64622108]
[1765944492456,0.001,2955.0,2954.9,5.92527852]
[1765944492617,0.001,2955.0,2954.9,10.64622108]
[1765944496027,0.001,2955.0,2954.9,5.92527852]
[1765944496234,0.001,2955.0,2954.9,10.64622108]
[1765944497601,0.001,2955.0,2954.9,10.6425755]
[1765944497833,0.001,2955.0,2954.9,5.92527852]
[1765944499135,0.001,2955.0,2954.9,5.39127852]
[1765944499333,0.001,2955.0,2954.9,5.92527852]
[1765944500435,0.001,2955.0,2954.9,3.89440035]
[1765944500629,0.079,2955.0,2954.9,3.38420927]
[1765944500823,0.5491,2954.9,2954.8,3.38429652]
[1765944501029,0.5491,2954.9,2954.8,3.91829652]
[1765944501336,0.0771,2954.6,2954.5,3.38466254]
[1765944501540,0.0771,2954.6,2954.5,3.91866254]
[1765944502037,0.0771,2954.6,2954.5,3.91966254]
[1765944502339,0.0771,2954.6,2954.5,3.38566254]
[1765944502520,0.5453,2954.6,2954.5,3.91966254]
[1765944502722,0.0771,2954.6,2954.5,3.91966254]
[1765944503535,0.0771,2954.6,2954.5,0.001]
[1765944504029,0.0771,2954.6,2954.5,0.535]
[1765944504224,0.0771,2954.6,2954.5,0.001]
[1765944504408,0.5453,2954.6,2954.5,0.535]
[1765944505542,0.5453,2954.6,2954.5,0.001]
[1765944505849,0.5453,2954.6,2954.5,0.535]
[1765944509012,0.5453,2954.6,2954.5,0.001]
[1765944509242,0.5453,2954.6,2954.5,0.535]
[1765944510540,1.0715597,2954.6,2954.5,0.535]
[1765944511747,1.0715597,2954.6,2954.5,0.001]
[1765944511948,1.0715597,2954.6,2954.5,0.535]
[1765944512450,0.5453,2954.6,2954.5,0.535]
[1765944513445,0.5453,2954.6,2954.5,0.001]
[1765944513612,5.26736212,2954.6,2954.5,0.001]
[1765944513813,5.26736212,2954.6,2954.5,0.535]
[1765944514043,0.5453,2954.6,2954.5,0.535]
[1765944514247,0.93826592,2954.6,2954.5,0.535]
[1765944514839,0.93826592,2954.6,2954.5,0.001]
[1765944515041,0.93826592,2954.6,2954.5,0.535]
[1765944517354,0.5453,2954.6,2954.5,0.535]
[1765944518147,0.5453,2954.6,2954.5,3.91966745]
[1765944518531,0.5453,2954.6,2954.5,0.535]
[1765944523955,0.5453,2954.6,2954.5,0.001]
[1765944524255,0.5453,2954.6,2954.5,0.535]
[1765944524444,1.41048108,2954.6,2954.5,0.535]
[1765944525255,0.5453,2954.6,2954.5,0.535]
[1765944534478,9.11629525,2954.6,2954.5,0.535]
[1765944535678,9.11629525,2954.6,2954.5,0.001]
[1765944536692,1.00968023,2954.6,2954.5,0.001]
[1765944537180,4.39423313,2954.6,2954.5,0.001]
[1765944537384,5.64429814,2954.6,2954.5,0.001]
[1765944542687,0.0047,2954.2,2954.1,0.534]
[1765944542892,0.5448,2953.7,2953.6,0.002]
[1765944543185,0.5448,2953.7,2953.6,0.536]
[1765944543889,0.5448,2953.7,2953.6,0.002]
[1765944544071,0.5448,2953.7,2953.6,0.536]
[1765944544267,0.5448,2953.7,2953.6,0.002]
[1765944544584,3.93038418,2953.7,2953.6,0.002]
[1765944544788,4.79562881,2953.7,2953.6,0.002]
[1765944546181,1.41004463,2953.7,2953.6,0.002]
[1765944546388,0.5448,2953.7,2953.6,0.002]
[1765944547193,3.93038418,2953.7,2953.6,0.002]
[1765944547567,8.6524463,2953.7,2953.6,0.002]
[1765944549192,0.54642659,2953.6,2953.5,0.002]
[1765944553424,0.05672659,2953.6,2953.5,0.002]
[1765944553700,0.05162659,2953.6,2953.5,0.85089028]
[1765944553900,0.05162659,2953.6,2953.5,1.33869028]
[1765944554112,0.05162659,2953.6,2953.5,1.34888136]
[1765944554971,0.05162659,2953.6,2953.5,1.33869028]
[1765944555401,0.05162659,2953.6,2953.5,4.72450372]
[1765944556096,0.59672659,2953.6,2953.5,0.002]
[1765944556314,0.59672659,2953.6,2953.5,0.537]
[1765944556470,3.98242539,2953.6,2953.5,0.002]
[1765944556808,0.0054,2952.6,2952.5,3.38887247]
[1765944557101,0.4951,2952.6,2952.5,0.002]
[1765944557480,0.4951,2952.6,2952.5,0.537]
[1765944559597,0.6527,2953.0,2952.5,4.3802602]
[1765944559797,0.0597,2952.6,2952.5,3.9239602]
[1765944560902,0.5451,2952.6,2952.5,3.9239602]
[1765944562288,0.0597,2952.6,2952.5,3.9239602]
[1765944563901,0.5451,2952.6,2952.5,3.9239602]
[1765944565119,0.5451,2952.6,2952.5,0.537]
[1765944565493,1.07247008,2952.6,2952.5,0.002]
[1765944565684,9.18791634,2952.6,2952.5,0.002]
[1765944565883,9.18791634,2952.6,2952.5,0.537]
[1765944566594,5.80107085,2952.6,2952.5,0.537]
[1765944569615,1.01467008,2952.6,2952.5,0.537]
[1765944569822,0.5494,2952.6,2952.5,0.537]
[1765944572230,0.5494,2952.6,2952.5,0.002]
[1765944581627,0.4873,2952.6,2952.5,0.002]
[1765944581810,0.5494,2952.6,2952.5,0.002]
[1765944582344,0.4873,2952.6,2952.5,0.002]
[1765944583537,0.5494,2952.6,2952.5,0.002]
[1765944584539,0.5494,2952.6,2952.5,0.537]
[1765944587762,0.94300194,2952.6,2952.5,0.537]
[1765944588209,0.94300194,2952.6,2952.5,0.002]
[1765944588416,4.32984743,2952.6,2952.5,0.002]
[1765944588615,4.32984743,2952.6,2952.5,0.537]
[1765944589522,4.32984743,2952.6,2952.5,0.002]
[1765944589709,4.32984743,2952.6,2952.5,0.537]
[1765944591254,4.32984743,2952.6,2952.5,0.002]
[1765944591459,9.05776821,2952.6,2952.5,0.002]
[1765944591744,9.52214844,2952.6,2952.5,0.002]
[1765944592113,0.0047,2952.2,2952.1,0.001]
[1765944592340,5.21802078,2952.2,2952.1,0.001]
[1765944592729,8.60532516,2952.2,2952.1,0.001]
[1765944595538,8.60532516,2952.2,2951.3,0.002]
[1765944595539,0.4906,2951.4,2951.3,0.002]
[1765944595738,5.21852078,2951.4,2951.3,0.002]
[1765944596049,0.4906,2951.4,2951.3,0.002]
[1765944597472,3.87882253,2951.4,2951.3,0.002]
[1765944600053,3.87882253,2951.4,2951.0,0.537]
[1765944600054,0.5437,2951.1,2951.0,0.002]
[1765944600225,5.27162078,2951.1,2951.0,0.002]
[1765944600424,5.84522088,2951.1,2951.0,0.002]
[1765944600621,6.30960111,2951.1,2951.0,0.002]
[1765944601065,0.95608023,2951.0,2950.9,0.002]
[1765944601269,0.5432,2950.2,2950.1,0.002]
[1765944601478,0.5432,2950.2,2950.1,0.537]
[1765944603155,0.5432,2950.2,2950.1,0.002]
[1765944603403,3.9328007,2950.2,2950.1,0.002]
[1765944603565,4.8957879,2950.2,2950.1,0.002]
[1765944603764,1.5061872,2950.2,2950.1,0.002]
[1765944604462,10.08808891,2950.2,2950.1,0.002]
[1765944605780,1.5061872,2950.2,2950.1,0.002]
[1765944606080,0.1801,2950.7,2950.2,0.479]
[1765944606382,0.1801,2950.7,2950.3,0.535]
[1765944606583,0.6572,2951.2,2950.4,5.20692078]
[1765944606795,0.6572,2951.2,2950.5,0.479]
[1765944606978,0.4814,2951.1,2950.5,0.48919108]
[1765944607181,0.6603,2951.4,2950.7,0.479]
[1765944607386,0.6603,2951.6,2950.9,0.48919108]
[1765944607696,0.1789,2951.6,2950.9,0.48919108]
[1765944607988,0.4814,2951.5,2950.9,0.48919108]
[1765944608166,0.4814,2951.5,2951.0,6.7773636]
[1765944608368,0.0679,2951.1,2951.0,3.3886818]
[1765944608767,0.0679,2951.1,2951.0,3.9246818]
[1765944608963,0.5452,2951.1,2951.0,3.9246818]
[1765944609893,0.5452,2951.1,2951.0,3.3886818]
[1765944610072,0.5452,2951.1,2951.0,3.9246818]
[1765944610273,0.0679,2951.1,2951.0,3.9246818]
[1765944611100,0.5452,2951.1,2951.0,3.9246818]
[1765944611393,0.0679,2951.1,2951.0,3.9246818]
[1765944611795,0.0679,2951.1,2951.0,3.3886818]
[1765944611963,0.0679,2951.1,2951.0,3.9246818]
[1765944612363,0.5462,2951.1,2951.0,3.9246818]
[1765944613194,0.0689,2951.1,2951.0,3.9246818]
[1765944613488,0.5462,2951.1,2951.0,3.9236818]
[1765944613684,0.0689,2951.1,2951.0,3.9236818]
[1765944613896,0.001,2951.1,2951.0,4.8627818]
[1765944614083,0.001,2951.1,2951.0,5.84807485]
[1765944614264,0.001,2951.1,2951.0,12.86879114]
[1765944615366,0.001,2951.1,2951.0,3.7941858]
[1765944615565,0.001,2951.1,2951.0,3.3886818]
[1765944615566,0.0689,2951.1,2951.0,3.3886818]
[1765944615792,0.0689,2951.1,2951.0,3.9246818]
[1765944616295,0.001,2951.1,2951.0,3.9246818]
[1765944616798,0.073,2951.1,2951.0,3.9246818]
[1765944617564,0.4586,2950.9,2950.5,0.479]
[1765944617761,0.4824,2951.1,2950.7,0.865604]
[1765944617970,0.001,2951.1,2951.0,0.4601]
[1765944618194,0.001,2951.1,2951.0,1.880604]
[1765944618896,0.001,2951.1,2951.0,5.2692858]